[Event "Titled Tuesday Blitz April 4 Early 2023"]
[White "Arat, Ufuk Sezen"]
[Black "Jaskolka, Tomasz"]
[WhiteFideId "6309089"]
[BlackFideId "1170791"]
[WhiteElo "2289"]
[BlackElo "2155"]
[Result "1-0"]
[Round "02"]
[TimeControl "180+2"]
[Date "2023.04.04"]
[WhiteClock "0:00:53"]
[BlackClock "0:00:37"]

1. e4 {[%clk 0:02:57]}  c5 {[%clk 0:02:59]} 2. Nf3 {[%clk 0:02:57]}  e6 {[%clk 0:02:59]} 3. d4 {[%clk 0:02:57]}  cxd4 {[%clk 0:02:59]} 4. Nxd4 {[%clk 0:02:58]}  Nc6 {[%clk 0:03:00]} 5. Nc3 {[%clk 0:02:58]}  Qc7 {[%clk 0:03:00]} 6. g3 {[%clk 0:02:57]}  a6 {[%clk 0:03:00]} 7. Bg2 {[%clk 0:02:58]}  Nf6 {[%clk 0:03:00]} 8. O-O {[%clk 0:02:58]}  Nxd4 {[%clk 0:03:00]} 9. Qxd4 {[%clk 0:02:59]}  Bc5 {[%clk 0:03:00]} 10. Bf4 {[%clk 0:03:00]}  d6 {[%clk 0:02:58]} 11. Qd2 {[%clk 0:03:00]}  h6 {[%clk 0:02:54]} 12. Rad1 {[%clk 0:03:00]}  e5 {[%clk 0:02:53]} 13. Be3 {[%clk 0:03:00]}  Bxe3 {[%clk 0:02:45]} 14. fxe3 {[%clk 0:02:59]}  Be6 {[%clk 0:02:46]} 15. Qxd6 {[%clk 0:02:37]}  Rc8 {[%clk 0:02:42]} 16. Qxc7 {[%clk 0:02:36]}  Rxc7 {[%clk 0:02:42]} 17. Rd6 {[%clk 0:02:37]}  Ke7 {[%clk 0:02:40]} 18. Rfd1 {[%clk 0:02:24]}  h5 {[%clk 0:02:39]} 19. Rb6 {[%clk 0:02:18]}  h4 {[%clk 0:02:31]} 20. Nd5+ {[%clk 0:02:11]}  Bxd5 {[%clk 0:02:26]} 21. exd5 {[%clk 0:02:12]}  Rxc2 {[%clk 0:02:26]} 22. d6+ {[%clk 0:02:06]}  Kd8 {[%clk 0:02:14]} 23. Rxb7 {[%clk 0:01:52]}  Nd7 {[%clk 0:01:31]} 24. Bh3 {[%clk 0:01:10]}  hxg3 {[%clk 0:00:47]} 25. Rxd7+ {[%clk 0:01:09]}  Ke8 {[%clk 0:00:47]} 26. Rc7 {[%clk 0:01:00]}  gxh2+ {[%clk 0:00:38]} 27. Kh1 {[%clk 0:00:58]}  Rxh3 {[%clk 0:00:37]} 28. d7+ {[%clk 0:00:52]}  Kd8 {[%clk 0:00:37]} 29. Rxc2 {[%clk 0:00:53]} 1-0


[Site "https://www.chess.com"]

[Event "Titled Tuesday Blitz April 4 Early 2023"]
[White "Aggelis, Nikolaos"]
[Black "Idnani, Roshan"]
[WhiteFideId "4213220"]
[BlackFideId "2072939"]
[WhiteElo "2189"]
[BlackElo "2303"]
[Result "0-1"]
[Round "02"]
[TimeControl "180+2"]
[Date "2023.04.04"]
[WhiteClock "0:00:13"]
[BlackClock "0:00:29"]

1. c4 {[%clk 0:02:53]}  g6 {[%clk 0:02:57]} 2. Nc3 {[%clk 0:02:52]}  Bg7 {[%clk 0:02:57]} 3. g3 {[%clk 0:02:52]}  d6 {[%clk 0:02:57]} 4. Bg2 {[%clk 0:02:50]}  e5 {[%clk 0:02:57]} 5. b4 {[%clk 0:02:47]}  f5 {[%clk 0:02:56]} 6. Bb2 {[%clk 0:02:46]}  Nf6 {[%clk 0:02:56]} 7. e3 {[%clk 0:02:45]}  O-O {[%clk 0:02:55]} 8. Nge2 {[%clk 0:02:45]}  c6 {[%clk 0:02:55]} 9. O-O {[%clk 0:02:46]}  e4 {[%clk 0:02:51]} 10. d4 {[%clk 0:02:42]}  Be6 {[%clk 0:02:48]} 11. d5 {[%clk 0:02:35]}  Bf7 {[%clk 0:02:47]} 12. Nd4 {[%clk 0:02:34]}  Qc7 {[%clk 0:02:40]} 13. Rc1 {[%clk 0:02:28]}  Nbd7 {[%clk 0:02:39]} 14. Qb3 {[%clk 0:02:00]}  Ne5 {[%clk 0:02:37]} 15. Rfd1 {[%clk 0:01:55]}  Rfe8 {[%clk 0:02:31]} 16. Bf1 {[%clk 0:01:54]}  a6 {[%clk 0:02:29]} 17. Kg2 {[%clk 0:01:51]}  c5 {[%clk 0:02:28]} 18. bxc5 {[%clk 0:01:45]}  dxc5 {[%clk 0:02:29]} 19. Nde2 {[%clk 0:01:45]}  Nd3 {[%clk 0:02:23]} 20. Rxd3 {[%clk 0:01:42]}  exd3 {[%clk 0:02:23]} 21. Nf4 {[%clk 0:01:43]}  d2 {[%clk 0:02:22]} 22. Rd1 {[%clk 0:01:43]}  Ne4 {[%clk 0:02:23]} 23. Nxe4 {[%clk 0:01:42]}  Rxe4 {[%clk 0:02:22]} 24. Bxg7 {[%clk 0:01:40]}  Kxg7 {[%clk 0:02:23]} 25. Rxd2 {[%clk 0:01:41]}  g5 {[%clk 0:02:23]} 26. d6 {[%clk 0:01:25]}  Qd7 {[%clk 0:02:20]} 27. Nd5 {[%clk 0:01:25]}  Qxd6 {[%clk 0:02:13]} 28. Qxb7 {[%clk 0:01:25]}  Rae8 {[%clk 0:02:08]} 29. Bd3 {[%clk 0:01:22]}  R4e5 {[%clk 0:01:33]} 30. Be2 {[%clk 0:01:18]}  Rd8 {[%clk 0:01:17]} 31. Rd3 {[%clk 0:01:10]}  Rd7 {[%clk 0:01:14]} 32. Qa8 {[%clk 0:00:59]}  Bxd5+ {[%clk 0:01:10]} 33. cxd5 {[%clk 0:00:58]}  Rxd5 {[%clk 0:01:09]} 34. Rxd5 {[%clk 0:00:51]}  Qxd5+ {[%clk 0:01:10]} 35. Qxd5 {[%clk 0:00:51]}  Rxd5 {[%clk 0:01:11]} 36. Bxa6 {[%clk 0:00:51]}  Rd2 {[%clk 0:01:10]} 37. a4 {[%clk 0:00:50]}  Rc2 {[%clk 0:01:03]} 38. Bd3 {[%clk 0:00:49]}  Ra2 {[%clk 0:01:02]} 39. Bb5 {[%clk 0:00:46]}  Kf6 {[%clk 0:01:02]} 40. Kf1 {[%clk 0:00:46]}  Ke5 {[%clk 0:01:02]} 41. f3 {[%clk 0:00:39]}  Rxh2 {[%clk 0:01:01]} 42. a5 {[%clk 0:00:40]}  Rb2 {[%clk 0:00:59]} 43. Bc4 {[%clk 0:00:39]}  Rb4 {[%clk 0:00:58]} 44. Bd3 {[%clk 0:00:38]}  Ra4 {[%clk 0:00:56]} 45. a6 {[%clk 0:00:37]}  c4 {[%clk 0:00:56]} 46. f4+ {[%clk 0:00:36]}  gxf4 {[%clk 0:00:55]} 47. gxf4+ {[%clk 0:00:35]}  Ke6 {[%clk 0:00:53]} 48. Be2 {[%clk 0:00:34]}  Kd5 {[%clk 0:00:52]} 49. Bf3+ {[%clk 0:00:30]}  Kc5 {[%clk 0:00:52]} 50. Bb7 {[%clk 0:00:29]}  Ra2 {[%clk 0:00:47]} 51. Ke1 {[%clk 0:00:27]}  c3 {[%clk 0:00:46]} 52. Bc8 {[%clk 0:00:28]}  h5 {[%clk 0:00:41]} 53. Bxf5 {[%clk 0:00:18]}  Rxa6 {[%clk 0:00:41]} 54. Kf2 {[%clk 0:00:19]}  Kc4 {[%clk 0:00:38]} 55. Kg3 {[%clk 0:00:19]}  Rd6 {[%clk 0:00:34]} 56. Kh4 {[%clk 0:00:19]}  Rd3 {[%clk 0:00:33]} 57. Be6+ {[%clk 0:00:16]}  Kb4 {[%clk 0:00:31]} 58. Bf5 {[%clk 0:00:15]}  Rxe3 {[%clk 0:00:30]} 59. Kxh5 {[%clk 0:00:16]}  Rf3 {[%clk 0:00:30]} 60. Kg4 {[%clk 0:00:16]}  Rf1 {[%clk 0:00:30]} 61. Bd3 {[%clk 0:00:15]}  Rd1 {[%clk 0:00:29]} 62. Bc2 {[%clk 0:00:14]}  Rd2 {[%clk 0:00:29]} 63. Bh7 {[%clk 0:00:15]}  Kc5 {[%clk 0:00:30]} 64. Kf3 {[%clk 0:00:13]}  c2 {[%clk 0:00:28]} 65. Bxc2 {[%clk 0:00:13]}  Rxc2 {[%clk 0:00:29]} 66. Ke4 {[%clk 0:00:13]}  Kd6 {[%clk 0:00:29]} 0-1


[Site "https://www.chess.com"]

[Event "Titled Tuesday Blitz April 4 Early 2023"]
[White "Tagliata"]
[Black "Miszler, Levente"]
[BlackFideId "763276"]
[WhiteElo "2287"]
[BlackElo "2176"]
[Result "1/2-1/2"]
[Round "02"]
[TimeControl "180+2"]
[Date "2023.04.04"]
[WhiteClock "0:00:11"]
[BlackClock "0:00:12"]

1. e4 {[%clk 0:02:55]}  c6 {[%clk 0:03:00]} 2. Nc3 {[%clk 0:02:55]}  d5 {[%clk 0:03:00]} 3. Nf3 {[%clk 0:02:55]}  Nf6 {[%clk 0:02:57]} 4. e5 {[%clk 0:02:54]}  Nfd7 {[%clk 0:02:50]} 5. e6 {[%clk 0:02:33]}  fxe6 {[%clk 0:02:50]} 6. d4 {[%clk 0:02:32]}  c5 {[%clk 0:02:41]} 7. Be3 {[%clk 0:02:24]}  Nc6 {[%clk 0:02:40]} 8. dxc5 {[%clk 0:02:22]}  Nf6 {[%clk 0:02:37]} 9. Bb5 {[%clk 0:02:19]}  Qa5 {[%clk 0:02:29]} 10. O-O {[%clk 0:02:04]}  Bd7 {[%clk 0:02:28]} 11. a3 {[%clk 0:01:56]}  g6 {[%clk 0:02:27]} 12. b4 {[%clk 0:01:54]}  Qc7 {[%clk 0:02:27]} 13. Bxc6 {[%clk 0:01:54]}  Bxc6 {[%clk 0:02:24]} 14. Bd4 {[%clk 0:01:53]}  Bg7 {[%clk 0:02:23]} 15. Qd3 {[%clk 0:01:47]}  O-O {[%clk 0:02:20]} 16. Rae1 {[%clk 0:01:47]}  Bd7 {[%clk 0:02:16]} 17. Ng5 {[%clk 0:01:43]}  a5 {[%clk 0:02:05]} 18. Nxe6 {[%clk 0:01:38]}  Bxe6 {[%clk 0:02:05]} 19. Rxe6 {[%clk 0:01:39]}  axb4 {[%clk 0:02:05]} 20. axb4 {[%clk 0:01:39]}  Ra3 {[%clk 0:02:04]} 21. Bxf6 {[%clk 0:01:06]}  Bxf6 {[%clk 0:02:01]} 22. Qxd5 {[%clk 0:01:01]}  Kg7 {[%clk 0:01:49]} 23. Ne4 {[%clk 0:01:01]}  Rd8 {[%clk 0:01:49]} 24. Qc4 {[%clk 0:00:51]}  Qf4 {[%clk 0:01:42]} 25. Qe2 {[%clk 0:00:49]}  Be5 {[%clk 0:01:27]} 26. Ng3 {[%clk 0:00:42]}  Bf6 {[%clk 0:01:20]} 27. Rd1 {[%clk 0:00:32]}  Rd4 {[%clk 0:01:13]} 28. Rxd4 {[%clk 0:00:22]}  Qxd4 {[%clk 0:01:13]} 29. h3 {[%clk 0:00:20]}  Qxb4 {[%clk 0:01:04]} 30. Ne4 {[%clk 0:00:20]}  Ra1+ {[%clk 0:01:03]} 31. Kh2 {[%clk 0:00:20]}  Re1 {[%clk 0:01:02]} 32. Qf3 {[%clk 0:00:21]}  Qc4 {[%clk 0:00:29]} 33. Rxf6 {[%clk 0:00:16]}  Qxe4 {[%clk 0:00:26]} 34. Rf7+ {[%clk 0:00:16]}  Kh6 {[%clk 0:00:26]} 35. Qxe4 {[%clk 0:00:10]}  Rxe4 {[%clk 0:00:27]} 36. Rf8 {[%clk 0:00:11]}  Rc4 {[%clk 0:00:25]} 37. Re8 {[%clk 0:00:10]}  Rxc5 {[%clk 0:00:23]} 38. Rxe7 {[%clk 0:00:11]}  Rxc2 {[%clk 0:00:24]} 39. Rxb7 {[%clk 0:00:11]}  Rxf2 {[%clk 0:00:24]} 40. Rb6 {[%clk 0:00:11]}  Rc2 {[%clk 0:00:23]} 41. Rb5 {[%clk 0:00:11]}  g5 {[%clk 0:00:23]} 42. Rb6+ {[%clk 0:00:12]}  Kg7 {[%clk 0:00:22]} 43. Rb7+ {[%clk 0:00:12]}  Kg6 {[%clk 0:00:22]} 44. Rb6+ {[%clk 0:00:13]}  Kh5 {[%clk 0:00:20]} 45. Rb7 {[%clk 0:00:13]}  h6 {[%clk 0:00:20]} 46. Rb6 {[%clk 0:00:13]}  Rd2 {[%clk 0:00:20]} 47. Rf6 {[%clk 0:00:12]}  g4 {[%clk 0:00:17]} 48. Rf5+ {[%clk 0:00:11]}  Kh4 {[%clk 0:00:17]} 49. hxg4 {[%clk 0:00:08]}  Kxg4 {[%clk 0:00:16]} 50. Rf8 {[%clk 0:00:09]}  h5 {[%clk 0:00:16]} 51. Rg8+ {[%clk 0:00:10]}  Kh4 {[%clk 0:00:15]} 52. Rh8 {[%clk 0:00:11]}  Ra2 {[%clk 0:00:14]} 53. Rg8 {[%clk 0:00:11]}  Rb2 {[%clk 0:00:14]} 54. Rh8 {[%clk 0:00:12]}  Rb3 {[%clk 0:00:12]} 55. Rg8 {[%clk 0:00:10]}  Rb2 {[%clk 0:00:12]} 56. Rh8 {[%clk 0:00:11]}  Ra2 {[%clk 0:00:12]} 57. Rg8 {[%clk 0:00:11]}  Rb2 {[%clk 0:00:12]} 1/2-1/2


[Site "https://www.chess.com"]

[Event "Titled Tuesday Blitz April 4 Early 2023"]
[White "Baches Garcia, Guillermo"]
[Black "EdmundPlayer"]
[WhiteFideId "2209764"]
[WhiteElo "2476"]
[BlackElo "2245"]
[Result "1-0"]
[Round "02"]
[TimeControl "180+2"]
[Date "2023.04.04"]
[WhiteClock "0:01:10"]
[BlackClock "0:00:01"]

1. e4 {[%clk 0:03:00]}  e5 {[%clk 0:02:56]} 2. Nf3 {[%clk 0:03:01]}  Nc6 {[%clk 0:02:56]} 3. Nc3 {[%clk 0:03:01]}  Nf6 {[%clk 0:02:55]} 4. d4 {[%clk 0:03:01]}  exd4 {[%clk 0:02:55]} 5. Nxd4 {[%clk 0:03:01]}  Bb4 {[%clk 0:02:52]} 6. Nxc6 {[%clk 0:03:01]}  bxc6 {[%clk 0:02:52]} 7. Bd3 {[%clk 0:03:01]}  O-O {[%clk 0:02:50]} 8. O-O {[%clk 0:03:01]}  Re8 {[%clk 0:02:30]} 9. Bg5 {[%clk 0:03:00]}  h6 {[%clk 0:02:29]} 10. Bh4 {[%clk 0:03:00]}  d5 {[%clk 0:02:24]} 11. exd5 {[%clk 0:02:53]}  cxd5 {[%clk 0:02:24]} 12. Bxf6 {[%clk 0:02:50]}  Qxf6 {[%clk 0:02:14]} 13. Nxd5 {[%clk 0:02:47]}  Qd6 {[%clk 0:02:00]} 14. Nxb4 {[%clk 0:02:43]}  Qxb4 {[%clk 0:02:00]} 15. b3 {[%clk 0:02:38]}  Bb7 {[%clk 0:01:52]} 16. Re1 {[%clk 0:02:34]}  Bc6 {[%clk 0:01:12]} 17. a3 {[%clk 0:02:26]}  Rxe1+ {[%clk 0:01:08]} 18. Qxe1 {[%clk 0:02:25]}  Qg4 {[%clk 0:01:09]} 19. Qf1 {[%clk 0:02:15]}  Re8 {[%clk 0:00:59]} 20. f3 {[%clk 0:02:12]}  Qd4+ {[%clk 0:00:56]} 21. Kh1 {[%clk 0:02:10]}  a5 {[%clk 0:00:50]} 22. a4 {[%clk 0:02:04]}  Bd5 {[%clk 0:00:42]} 23. Re1 {[%clk 0:01:57]}  Re3 {[%clk 0:00:32]} 24. Rxe3 {[%clk 0:01:45]}  Qxe3 {[%clk 0:00:31]} 25. h3 {[%clk 0:01:45]}  Kf8 {[%clk 0:00:30]} 26. Qe2 {[%clk 0:01:41]}  Qc1+ {[%clk 0:00:29]} 27. Kh2 {[%clk 0:01:40]}  Qf4+ {[%clk 0:00:29]} 28. Kg1 {[%clk 0:01:40]}  Qd4+ {[%clk 0:00:28]} 29. Kf1 {[%clk 0:01:34]}  Qa1+ {[%clk 0:00:27]} 30. Kf2 {[%clk 0:01:34]}  Qd4+ {[%clk 0:00:23]} 31. Qe3 {[%clk 0:01:34]}  c5 {[%clk 0:00:17]} 32. Qxd4 {[%clk 0:01:27]}  cxd4 {[%clk 0:00:18]} 33. Ke2 {[%clk 0:01:25]}  Ke7 {[%clk 0:00:18]} 34. Be4 {[%clk 0:01:24]}  Be6 {[%clk 0:00:04]} 35. Kd3 {[%clk 0:01:20]}  f5 {[%clk 0:00:03]} 36. Bb7 {[%clk 0:01:20]}  Kd6 {[%clk 0:00:02]} 37. Kxd4 {[%clk 0:01:20]}  f4 {[%clk 0:00:02]} 38. Ba6 {[%clk 0:01:17]}  g5 {[%clk 0:00:02]} 39. Bc4 {[%clk 0:01:16]}  Bf5 {[%clk 0:00:02]} 40. Bd3 {[%clk 0:01:16]}  Be6 {[%clk 0:00:02]} 41. Be4 {[%clk 0:01:16]}  Bd7 {[%clk 0:00:02]} 42. c3 {[%clk 0:01:14]}  Be6 {[%clk 0:00:03]} 43. Bc2 {[%clk 0:01:13]}  Bd7 {[%clk 0:00:01]} 44. b4 {[%clk 0:01:10]} 1-0


[Site "https://www.chess.com"]

[Event "Titled Tuesday Blitz April 4 Early 2023"]
[White "Onslow, Alfie"]
[Black "Bettalli, Francesco"]
[WhiteFideId "436976"]
[BlackFideId "2816453"]
[WhiteElo "2114"]
[BlackElo "2216"]
[Result "0-1"]
[Round "02"]
[TimeControl "180+2"]
[Date "2023.04.04"]
[WhiteClock "0:00:03"]
[BlackClock "0:00:21"]

1. Nf3 {[%clk 0:03:00]}  g6 {[%clk 0:02:56]} 2. c4 {[%clk 0:02:56]}  Bg7 {[%clk 0:02:57]} 3. Nc3 {[%clk 0:02:56]}  c6 {[%clk 0:02:56]} 4. g3 {[%clk 0:02:52]}  d5 {[%clk 0:02:56]} 5. cxd5 {[%clk 0:02:52]}  cxd5 {[%clk 0:02:57]} 6. Bg2 {[%clk 0:02:52]}  Nf6 {[%clk 0:02:57]} 7. d4 {[%clk 0:02:49]}  O-O {[%clk 0:02:58]} 8. O-O {[%clk 0:02:49]}  Ne4 {[%clk 0:02:57]} 9. Bf4 {[%clk 0:02:48]}  Nc6 {[%clk 0:02:55]} 10. Rc1 {[%clk 0:02:46]}  Bf5 {[%clk 0:02:54]} 11. Qb3 {[%clk 0:02:43]}  Na5 {[%clk 0:02:27]} 12. Qa4 {[%clk 0:02:09]}  Nc4 {[%clk 0:02:14]} 13. b3 {[%clk 0:01:57]}  Nb6 {[%clk 0:02:09]} 14. Qa5 {[%clk 0:01:50]}  Rc8 {[%clk 0:01:56]} 15. Nxe4 {[%clk 0:01:29]}  dxe4 {[%clk 0:01:57]} 16. Ne5 {[%clk 0:01:29]}  Qxd4 {[%clk 0:01:51]} 17. e3 {[%clk 0:01:14]}  Qd5 {[%clk 0:01:36]} 18. Qxa7 {[%clk 0:00:55]}  Bxe5 {[%clk 0:01:23]} 19. Bxe5 {[%clk 0:00:50]}  Qxe5 {[%clk 0:01:24]} 20. Qxb6 {[%clk 0:00:49]}  Rxc1 {[%clk 0:01:25]} 21. Rxc1 {[%clk 0:00:49]}  Qb2 {[%clk 0:01:25]} 22. Rd1 {[%clk 0:00:41]}  Bg4 {[%clk 0:01:15]} 23. Re1 {[%clk 0:00:28]}  Qd2 {[%clk 0:01:07]} 24. Ra1 {[%clk 0:00:20]}  Qc3 {[%clk 0:00:55]} 25. Rb1 {[%clk 0:00:12]}  Qc2 {[%clk 0:00:54]} 26. Re1 {[%clk 0:00:09]}  Ra8 {[%clk 0:00:35]} 27. Qxb7 {[%clk 0:00:02]}  Rxa2 {[%clk 0:00:35]} 28. Rf1 {[%clk 0:00:03]}  Be2 {[%clk 0:00:26]} 29. Bxe4 {[%clk 0:00:03]}  Qc3 {[%clk 0:00:21]} 0-1


[Site "https://www.chess.com"]

[Event "Titled Tuesday Blitz April 4 Early 2023"]
[White "Kiselev, Pavel"]
[Black "Goltseva, Ekaterina"]
[WhiteFideId "4191102"]
[BlackFideId "24173770"]
[WhiteElo "2145"]
[BlackElo "2200"]
[Result "0-1"]
[Round "02"]
[TimeControl "180+2"]
[Date "2023.04.04"]
[WhiteClock "0:00:05"]
[BlackClock "0:00:09"]

1. e4 {[%clk 0:02:59]}  c5 {[%clk 0:02:51]} 2. c3 {[%clk 0:02:58]}  Nf6 {[%clk 0:02:45]} 3. e5 {[%clk 0:02:56]}  Nd5 {[%clk 0:02:42]} 4. d4 {[%clk 0:02:56]}  cxd4 {[%clk 0:02:40]} 5. cxd4 {[%clk 0:02:57]}  d6 {[%clk 0:02:41]} 6. Nf3 {[%clk 0:02:53]}  e6 {[%clk 0:02:30]} 7. Bc4 {[%clk 0:02:52]}  Nb6 {[%clk 0:02:22]} 8. Bb5+ {[%clk 0:02:41]}  Bd7 {[%clk 0:02:20]} 9. Bxd7+ {[%clk 0:02:40]}  Qxd7 {[%clk 0:02:17]} 10. O-O {[%clk 0:02:41]}  Nc6 {[%clk 0:02:10]} 11. Nc3 {[%clk 0:02:33]}  dxe5 {[%clk 0:01:58]} 12. dxe5 {[%clk 0:02:34]}  Be7 {[%clk 0:01:50]} 13. Bf4 {[%clk 0:02:32]}  O-O-O {[%clk 0:01:46]} 14. Qxd7+ {[%clk 0:02:27]}  Rxd7 {[%clk 0:01:46]} 15. Nb5 {[%clk 0:02:22]}  a6 {[%clk 0:01:38]} 16. Nd6+ {[%clk 0:02:17]}  Bxd6 {[%clk 0:01:36]} 17. exd6 {[%clk 0:02:18]}  Nd5 {[%clk 0:01:36]} 18. Bg3 {[%clk 0:02:17]}  f6 {[%clk 0:01:32]} 19. Rfd1 {[%clk 0:02:10]}  Rdd8 {[%clk 0:01:25]} 20. Rac1 {[%clk 0:02:07]}  Kd7 {[%clk 0:01:24]} 21. b4 {[%clk 0:01:57]}  Ndxb4 {[%clk 0:01:19]} 22. Rb1 {[%clk 0:01:57]}  b5 {[%clk 0:01:13]} 23. a3 {[%clk 0:01:55]}  Nd5 {[%clk 0:01:12]} 24. Rbc1 {[%clk 0:01:52]}  Rc8 {[%clk 0:01:10]} 25. a4 {[%clk 0:01:34]}  b4 {[%clk 0:01:06]} 26. Rc5 {[%clk 0:01:32]}  Nb8 {[%clk 0:01:01]} 27. Rc7+ {[%clk 0:01:18]}  Rxc7 {[%clk 0:00:53]} 28. dxc7 {[%clk 0:01:18]}  Nc6 {[%clk 0:00:53]} 29. Nd4 {[%clk 0:01:08]}  Nxd4 {[%clk 0:00:40]} 30. Rxd4 {[%clk 0:01:09]}  Rc8 {[%clk 0:00:40]} 31. h3 {[%clk 0:00:50]}  Kc6 {[%clk 0:00:33]} 32. Rc4+ {[%clk 0:00:48]}  Kb6 {[%clk 0:00:28]} 33. Bd6 {[%clk 0:00:43]}  a5 {[%clk 0:00:26]} 34. Rc5 {[%clk 0:00:37]}  Nxc7 {[%clk 0:00:23]} 35. Rc4 {[%clk 0:00:21]}  Kb7 {[%clk 0:00:19]} 36. Rc5 {[%clk 0:00:19]}  Ne8 {[%clk 0:00:15]} 37. Rb5+ {[%clk 0:00:17]}  Ka6 {[%clk 0:00:15]} 38. Bg3 {[%clk 0:00:16]}  e5 {[%clk 0:00:14]} 39. f4 {[%clk 0:00:14]}  Nd6 {[%clk 0:00:09]} 40. Rd5 {[%clk 0:00:14]}  Ne4 {[%clk 0:00:07]} 41. Bh2 {[%clk 0:00:06]}  b3 {[%clk 0:00:07]} 42. g4 {[%clk 0:00:05]}  b2 {[%clk 0:00:07]} 43. Rb5 {[%clk 0:00:05]}  Rc1+ {[%clk 0:00:06]} 44. Kg2 {[%clk 0:00:04]}  b1=Q {[%clk 0:00:07]} 45. Rxb1 {[%clk 0:00:04]}  Rxb1 {[%clk 0:00:08]} 46. fxe5 {[%clk 0:00:05]}  fxe5 {[%clk 0:00:08]} 47. Bxe5 {[%clk 0:00:06]}  g6 {[%clk 0:00:09]} 48. h4 {[%clk 0:00:06]}  Rb4 {[%clk 0:00:09]} 49. h5 {[%clk 0:00:05]}  Rxa4 {[%clk 0:00:09]} 0-1


[Site "https://www.chess.com"]

[Event "Titled Tuesday Blitz April 4 Early 2023"]
[White "KorolDimitriy75"]
[Black "Srdanovic, Jovana"]
[BlackFideId "954810"]
[WhiteElo "2466"]
[BlackElo "2145"]
[Result "1-0"]
[Round "02"]
[TimeControl "180+2"]
[Date "2023.04.04"]
[WhiteClock "0:00:09"]
[BlackClock "0:00:22"]

1. d4 {[%clk 0:03:00]}  d5 {[%clk 0:02:58]} 2. c4 {[%clk 0:03:01]}  c6 {[%clk 0:02:58]} 3. Nc3 {[%clk 0:03:01]}  Nf6 {[%clk 0:02:57]} 4. e3 {[%clk 0:03:02]}  a6 {[%clk 0:02:53]} 5. Nf3 {[%clk 0:03:02]}  Bf5 {[%clk 0:02:41]} 6. Bd3 {[%clk 0:03:01]}  Bxd3 {[%clk 0:02:40]} 7. Qxd3 {[%clk 0:03:01]}  e6 {[%clk 0:02:39]} 8. O-O {[%clk 0:03:01]}  Be7 {[%clk 0:02:39]} 9. e4 {[%clk 0:03:00]}  dxe4 {[%clk 0:02:38]} 10. Nxe4 {[%clk 0:03:01]}  Nxe4 {[%clk 0:02:38]} 11. Qxe4 {[%clk 0:03:02]}  Nd7 {[%clk 0:02:38]} 12. Bf4 {[%clk 0:02:53]}  Nf6 {[%clk 0:02:36]} 13. Qe2 {[%clk 0:02:52]}  O-O {[%clk 0:02:36]} 14. Rad1 {[%clk 0:02:50]}  Re8 {[%clk 0:02:35]} 15. h3 {[%clk 0:02:49]}  Qa5 {[%clk 0:02:33]} 16. b3 {[%clk 0:02:48]}  Rad8 {[%clk 0:02:32]} 17. Ne5 {[%clk 0:02:33]}  Qc3 {[%clk 0:02:17]} 18. Rd3 {[%clk 0:02:23]}  Qa5 {[%clk 0:02:13]} 19. Rfd1 {[%clk 0:02:22]}  c5 {[%clk 0:01:52]} 20. dxc5 {[%clk 0:02:05]}  Qxc5 {[%clk 0:01:50]} 21. Nd7 {[%clk 0:01:16]}  Nxd7 {[%clk 0:01:26]} 22. Rxd7 {[%clk 0:01:17]}  Rxd7 {[%clk 0:01:18]} 23. Rxd7 {[%clk 0:01:18]}  b5 {[%clk 0:01:09]} 24. cxb5 {[%clk 0:00:36]}  axb5 {[%clk 0:01:06]} 25. Qd3 {[%clk 0:00:23]}  b4 {[%clk 0:00:59]} 26. Rc7 {[%clk 0:00:21]}  Qd5 {[%clk 0:00:54]} 27. Qxd5 {[%clk 0:00:19]}  exd5 {[%clk 0:00:55]} 28. Rd7 {[%clk 0:00:18]}  Bf6 {[%clk 0:00:47]} 29. Rxd5 {[%clk 0:00:18]}  Ra8 {[%clk 0:00:47]} 30. Rb5 {[%clk 0:00:17]}  g5 {[%clk 0:00:41]} 31. Rb8+ {[%clk 0:00:16]}  Rxb8 {[%clk 0:00:40]} 32. Bxb8 {[%clk 0:00:17]}  Bc3 {[%clk 0:00:39]} 33. Kf1 {[%clk 0:00:17]}  f5 {[%clk 0:00:38]} 34. Ke2 {[%clk 0:00:17]}  Kf7 {[%clk 0:00:39]} 35. Kd3 {[%clk 0:00:15]}  Ke6 {[%clk 0:00:39]} 36. Kc4 {[%clk 0:00:14]}  Be1 {[%clk 0:00:37]} 37. f3 {[%clk 0:00:14]}  h5 {[%clk 0:00:36]} 38. Bc7 {[%clk 0:00:13]}  f4 {[%clk 0:00:33]} 39. Ba5 {[%clk 0:00:13]}  g4 {[%clk 0:00:26]} 40. hxg4 {[%clk 0:00:12]}  hxg4 {[%clk 0:00:25]} 41. Bxb4 {[%clk 0:00:11]}  Bf2 {[%clk 0:00:22]} 42. Bd2 {[%clk 0:00:09]} 1-0


[Site "https://www.chess.com"]